{"text_format":"1","workbook":"xlsx","n_sheets":5,"sheets":["UvodniInformace","Zastoupeny","ZastupciFO","ZastupciPO","Ciselniky"],"not_rendered":{"charts":0,"images":15,"macros":1,"external_links":0,"defined_names":0,"comments":0,"pivot_tables":0},"unopened":[],"bounds":{"document_bytes":16777216,"sheet_cells":100000,"rows_first":2000,"rows_last":500,"rows_between":2000,"halvings":0,"cell_chars":16384,"cell_head_chars":4096},"cells_cut":0,"cells_raw":0,"read":"whole","date_system":"1900"}

{"sheet":"UvodniInformace","index":0,"n_rows":29,"n_cols":2,"rows_kept":29,"cut":false,"hidden":false,"merged":[]}
[]
[null,"Tento formulář slouží pro konverzi dat pro hromadné podání žádosti o nový zápis do registru podle ZPKT"]
[]
[null,"Popis jednotlivých listů formuláře"]
[null,"List \"Zastoupený\""]
[null,"Vyplňují se základní údaje o žadateli."]
[]
[null,"List \"ZastupciFO\""]
[null,"Vyplňují se údaje o fyzických osobách, které jsou oznamovány  jako VZ podle ZPKT."]
[]
[null,"List \"ZastupciPO\""]
[null,"Vyplňují se údaje o právnických osobách, kteréjsou oznamovány  jako VZ podle ZPKT."]
[]
[null,"Návod k vyplnění některých položek ve formuláři"]
[null,"Stát"]
[null,"Uvádí se vždy kód státu z číselníku. Kód pro ČR je \"CZ\"."]
[]
[null,"Adresa"]
[null,"Povinné položky jsou číslo popisné, obec, PSČ a stát. Pokud však tyto údaje nestačí pro jednoznačnou identifikaci adresního místa, je nutné uvést i další údaje. Obecně platí, že jakákoliv adresa v České republice, tak musí být uvedena v normalizovaném tvaru, aby byla jednoznačně identifikovatelná v registru územní identifikace a adres nemovitostí (RUIAN) - http://www.ruian.cz."]
[]
[null,"Adresa podnikání"]
[null,"Vyplňuje se jen v případě, že adresa sídla podnikání není totožná s adresou bydliště (u fyzických osob)."]
[]
[null,"Sídlo firmy"]
[null,"Vyplní se adresa místa podnikání."]
[]
[null,"Upozornění k oznamování změn u VZ"]
[null,"1. Činnosti VZ"]
[null,"Na listu „ZastupciFO“ nebo „ZastupciPO“ se vybere typ zápisu „Z“, vyplní se aktuálně platné údaje o zástupcích a uvedou se všechny činnosti, které má mít daný zástupce nově přiřazeny. Vždy je tedy nutné vyplňovat kompletní nový stav činnostíi, a ne pouze nově přidané činnosti (pokud již nějaké činnosti měl daný zástupce dříve přiřazeny). Z ostatních listů je vždy nutné vyplnit údaje na listu „Zastoupeny“. V rámci jednoho excelovského souboru (XML souboru) lze kombinovat požadavky typu „N“, „V“ a „Z“."]

{"sheet":"Zastoupeny","index":1,"n_rows":19,"n_cols":2,"rows_kept":19,"cut":false,"hidden":false,"merged":[[17,1,17,2],[18,1,18,2],[19,1,19,2],[1,1,2,2],[3,1,3,2],[14,1,14,2],[15,1,15,2],[16,1,16,2]]}
[]
[null,"Informace pro zápis do seznamu VZ  dle ZPKT"]
[]
[null,"I. Základní identifikace zastoupeného"]
[]
[null,"Typ osoby"]
[]
[null,"Právnická osoba"]
[null,"IČO"]
[null,"Název / Obchodní firma"]
[null,"Fyzická osoba"]
[null,"IČO"]
[null,"Jméno(a)"]
[null,"Příjmení"]
[]
[null,"Typ subjektu (vyberte typ zastoupeného, pro který budou vázaní zástupci činní)"]
[]
[]
[null,"Typ registrovaných osob (vyberte typ osob, které budete registrovat)"]

{"sheet":"ZastupciFO","index":2,"n_rows":110,"n_cols":102,"rows_kept":110,"cut":false,"hidden":false,"merged":[[5,40,5,76],[5,77,5,101],[8,40,8,42],[8,43,8,45],[8,46,8,48],[8,49,8,51],[8,52,8,54],[8,99,8,100],[8,61,8,63],[8,64,8,66],[8,67,8,69],[7,101,8,101],[8,87,8,88],[8,91,8,92],[8,95,8,96],[7,40,7,75],[6,29,6,39],[6,40,6,76],[6,77,6,101],[8,58,8,60],[8,83,8,84],[7,76,8,76],[8,85,8,86],[7,29,7,38],[8,77,8,78],[8,79,8,80],[8,81,8,82],[7,77,7,100],[8,73,8,75],[8,31,8,32],[8,24,9,24],[7,17,7,24],[8,18,9,18],[8,97,8,98],[8,55,8,57],[8,89,8,90],[8,93,8,94],[8,33,8,34],[8,35,8,36],[8,37,8,38],[8,70,8,72],[7,39,8,39],[5,1,9,1],[5,2,9,2],[5,3,5,24],[7,3,9,3],[7,4,9,4],[7,5,9,5],[7,6,9,6],[7,7,9,7],[7,8,9,8],[7,9,7,16],[8,14,9,14],[8,15,9,15],[8,16,9,16],[8,20,9,20],[8,21,9,21],[8,17,9,17],[5,29,5,39],[8,29,8,30],[7,25,7,27],[8,25,9,25],[8,26,9,26],[5,28,9,28],[6,3,6,27],[8,9,9,9],[8,10,9,10],[8,11,9,11],[8,12,9,12],[8,13,9,13],[8,22,9,22],[8,19,9,19],[8,27,9,27],[8,23,9,23]]}
[]
[]
[null,null,null,null,null,null,null,null,null,null,null,null,null,null,null,null,null,null,null,null,null,null,null,null,null,null,null,null,null,"IZ",null,null,null,null,null,null,null,null,null,null,"OCP",null,null,null,null,null,null,null,null,null,null,null,null,null,null,null,null,null,null,null,null,null,null,null,null,null,null,null,null,null,null,null,null,null,null,null,null,"IS"]
[null,null,null,null,null,null,null,null,null,null,null,null,null,null,null,null,null,null,null,null,null,null,null,null,null,null,null,null,null,"VZ17_IZ_R2S2_HISa_INa","VZ17_IZ_R3S2_HISe_INa","VZ17_IZ_R2S3_HISa_INb","VZ17_IZ_R3S3_HISe_INb","VZ17_IZ_R2S4_HISa_INc","VZ17_IZ_R3S4_HISe_INc","VZ17_IZ_R2S5_HISa_INd","VZ17_IZ_R3S5_HISe_INd","VZ17_IZ_R2S6_HISa_INe","VZ17_IZ_R3S6_HISe_INe","VZ17_IZ_R5S0_PROPAGACE","VZ17_OCP_R2S2_HISa_INa","VZ17_OCP_R6S2_HISe_INa","VZ17_OCP_R9S2_HISi_INa","VZ17_OCP_R2S3_HISa_INb","VZ17_OCP_R6S3_HISe_INb","VZ17_OCP_R9S3_HISi_INb","VZ17_OCP_R2S4_HISa_INc","VZ17_OCP_R6S4_HISe_INc","VZ17_OCP_R9S4_HISi_INc","VZ17_OCP_R2S5_HISa_INd","VZ17_OCP_R6S5_HISe_INd","VZ17_OCP_R9S5_HISi_INd","VZ17_OCP_R2S6_HISa_INe","VZ17_OCP_R6S6_HISe_INe","VZ17_OCP_R9S6_HISi_INe","VZ17_OCP_R2S7_HISa_INf","VZ17_OCP_R6S7_HISe_INf","VZ17_OCP_R9S7_HISi_INf","VZ17_OCP_R2S8_HISa_INg","VZ17_OCP_R6S8_HISe_INg","VZ17_OCP_R9S8_HISi_INg","VZ17_OCP_R2S9_HISa_INh","VZ17_OCP_R6S9_HISe_INh","VZ17_OCP_R9S9_HISi_INh","VZ17_OCP_R2S10_HISa_INi","VZ17_OCP_R6S10_HISe_INi","VZ17_OCP_R9S10_HISi_INi","VZ17_OCP_R2S11_HISa_INj","VZ17_OCP_R6S11_HISe_INj","VZ17_OCP_R9S11_HISi_INj","VZ17_OCP_R2S12_HISa_INk","VZ17_OCP_R6S12_HISe_INk","VZ17_OCP_R9S12_HISi_INk","VZ17_OCP_R2S13_HISa_INl","VZ17_OCP_R6S13_HISe_INl","VZ17_OCP_R9S13_HISi_INl","VZ17_OCP_R19S0_PROPAGACE","VZ17_IS_R2S2_HISa_INa","VZ17_IS_R4S2_HISe_INa","VZ17_IS_R2S3_HISa_INb","VZ17_IS_R4S3_HISe_INb","VZ17_IS_R2S4_HISa_INc","VZ17_IS_R4S4_HISe_INc","VZ17_IS_R2S5_HISa_INd","VZ17_IS_R4S5_HISe_INd","VZ17_IS_R2S6_HISa_INe","VZ17_IS_R4S6_HISe_INe","VZ17_IS_R2S7_HISa_INf","VZ17_IS_R4S7_HISe_INf","VZ17_IS_R2S8_HISa_INg","VZ17_IS_R4S8_HISe_INg","VZ17_IS_R2S9_HISa_INh","VZ17_IS_R4S9_HISe_INh","VZ17_IS_R2S10_HISa_INi","VZ17_IS_R4S10_HISe_INi","VZ17_IS_R2S11_HISa_INj","VZ17_IS_R4S11_HISe_INj","VZ17_IS_R2S12_HISa_INk","VZ17_IS_R4S12_HISe_INk","VZ17_IS_R2S13_HISa_INl","VZ17_IS_R4S13_HISe_INl","VZ17_IS_R6S0_PROPAGACE"]
[1,2,3,4,5,6,7,8,9,10,11,12,13,14,15,16,17,18,19,20,21,22,23,24,25,26,27,28,29,30,31,32,33,34,35,36,37,38,39,40,41,42,43,44,45,46,47,48,49,50,51,52,53,54,55,56,57,58,59,60,61,62,63,64,65,66,67,68,69,70,71,72,73,74,75,76,77,78,79,80,81,82,83,84,85,86,87,88,89,90,91,92,93,94,95,96,97,98,99,100,101,102]
[null,"Pořadové číslo","Druh zápisu (Nový, Změna, Výmaz)"," Identifikační údaje VZ",null,null,null,null,null,null,null,null,null,null,null,null,null,null,null,null,null,null,null,null,null,null,null,null,"Datum nabytí právní moci rozhodnutí o úpadku","Činnosti podle §32a, odst. 1 zákona č. 256/2004, o podnikání na kapitálovém trhu",null,null,null,null,null,null,null,null,null,null,"Činnosti podle §32a, odst. 1 zákona č. 256/2004, o podnikání na kapitálovém trhu",null,null,null,null,null,null,null,null,null,null,null,null,null,null,null,null,null,null,null,null,null,null,null,null,null,null,null,null,null,null,null,null,null,null,null,null,"Činnosti podle §32a, odst. 1 zákona č. 256/2004, o podnikání na kapitálovém trhu"]
[null,null,null,"Fyzická osoba",null,null,null,null,null,null,null,null,null,null,null,null,null,null,null,null,null,null,null,null,null,null,null,null,null,"Investiční nástroje podle § 29 odst. 3 zákona č. 256/2004, o podnikání na kapitálovém trhu",null,null,null,null,null,null,null,null,null,null,"Investiční nástroje podle § 3 odst. 1 zákona č. 256/2004, o podnikání na kapitálovém trhu",null,null,null,null,null,null,null,null,null,null,null,null,null,null,null,null,null,null,null,null,null,null,null,null,null,null,null,null,null,null,null,null,null,null,null,null,"Investiční nástroje podle § 3 odst. 1 zákona č. 256/2004, o podnikání na kapitálovém trhu"]
[null,null,null,"Titul před jménem","Jméno(a)","Příjmení","Titul za jménem","Datum narození","Identifikační číslo","Adresa trvalého pobytu",null,null,null,null,null,null,null,"Adresa podnikání (pokud se liší od adresy trvalého pobytu)",null,null,null,null,null,null,null,"Další kontakty",null,null,null,"Hlavní investiční služby (§ 4 odst. 2)",null,null,null,null,null,null,null,null,null,"Další oprávnění","Hlavní investiční služby (§ 4 odst. 2)",null,null,null,null,null,null,null,null,null,null,null,null,null,null,null,null,null,null,null,null,null,null,null,null,null,null,null,null,null,null,null,null,null,null,null,"Další oprávnění","Hlavní investiční služby (§ 4 odst. 2)",null,null,null,null,null,null,null,null,null,null,null,null,null,null,null,null,null,null,null,null,null,null,null,"Další oprávnění"]
[null,null,null,null,null,null,null,null,null,"Ulice","Číslo popisné","Číslo orientační","Písmo orientační","Část obce","Obec","PSČ","Stát","Ulice","Číslo popisné","Číslo orientační","Písmo orientační","Část obce","Obec","PSČ","Stát","Kontaktní telefon","Datová schránka","Email",null,"a) cenné papíry kolektivního investování vydávané fondy kolektivního investování nebo srovnatelnými zahraničními investičními fondy",null,"b) cenné papíry kolektivního investování vydávané fondy kvalifikovaných investorů nebo srovnatelnými zahraničními investičními fondy",null,"c) dluhopisy vydané Českou republikou",null,"d) hypoteční zástavní listy",null,"e) dluhopisy, ke kterým byl vydán prospekt nebo srovnatelný dokument",null,null,"a) investiční CP",null,null,"b) CP kolektivního investování",null,null,"c) nástroje peněžního trhu",null,null,"d) deriváty s právem vypořádání v penězích nebo dodání majetkové hodnoty",null,null,"e) nástroje umožňující přenos úvěrového rizika",null,null,"f) finanční rozdílové smlouvy",null,null,"g) deriváty s právem na vypořádání v penězích nebo využití práva platební neschopnosti",null,null,"h) deriváty s právem vypořádání dodáním komodity",null,null,"i) deriváty podle § 3 odst. 1 písm. i)",null,null,"j) deriváty, jejichž hodnota se vztahuje ke klimatickým ukazatelům",null,null,"k) nástroje vztahující se k majetkovým hodnotám, které nejsou uvedené v písm. j)",null,null,"l) povolenky na emise skleníkových plynů",null,null,null,"a) investiční CP",null,"b) cenné papíry kolektivního investování",null,"c) nástroje peněžního trhu",null,"d) deriváty s právem na vypořádání v penězích nebo dodání majetkové hodnoty",null,"e) nástroje umožňující přenos úvěrového rizika",null,"f) finanční rozdílové smlouvy",null,"g) komoditní deriváty s právem na vypořádání v penězích nebo uplatněním plateb. neschopnosti",null,"h) deriváty s právem vypořádání dodáním komodity",null,"i) deriváty s právem vypořádání dodáním komodity, které nejsou uvedeny v písm. h)",null,"j) deriváty, jejichž hodnota se vztahuje ke klimatickým ukazatelům",null,"k) nástroje vztahující se k ukazatelům, které nejsou uvedeny v písm. j)",null,"l) povolenky na emise skleníkových plynů"]
[null,null,null,null,null,null,null,null,null,null,null,null,null,null,null,null,null,null,null,null,null,null,null,null,null,null,null,null,null,"a) přijímání a předávání pokynů týkajících se IN","e) investiční poradenství týkající se IN","a) přijímání a předávání pokynů týkajících se IN","e) investiční poradenství týkající se IN","a) přijímání a předávání pokynů týkajících se IN","e) investiční poradenství týkající se IN","a) přijímání a předávání pokynů týkajících se IN","e) investiční poradenství týkající se IN","a) přijímání a předávání pokynů týkajících se IN","e) investiční poradenství týkající se IN","Propagace investičních služeb, který je zastoupený oprávněn poskytovat","a) přijímání a předávání pokynů týkajících se IN","e) investiční poradenství týkající se IN","i) umísťování IN bez závazku jejich upsání","a) přijímání a předávání pokynů týkajících se IN","e) investiční poradenství týkající se IN","i) umísťování IN bez závazku jejich upsání","a) přijímání a předávání pokynů týkajících se IN","e) investiční poradenství týkající se IN","i) umísťování IN bez závazku jejich upsání","a) přijímání a předávání pokynů týkajících se IN","e) investiční poradenství týkající se IN","i) umísťování IN bez závazku jejich upsání","a) přijímání a předávání pokynů týkajících se IN","e) investiční poradenství týkající se IN","i) umísťování IN bez závazku jejich upsání","a) přijímání a předávání pokynů týkajících se IN","e) investiční poradenství týkající se IN","i) umísťování IN bez závazku jejich upsání","a) přijímání a předávání pokynů týkajících se IN","e) investiční poradenství týkající se IN","i) umísťování IN bez závazku jejich upsání","a) přijímání a předávání pokynů týkajících se IN","e) investiční poradenství týkající se IN","i) umísťování IN bez závazku jejich upsání","a) přijímání a předávání pokynů týkajících se IN","e) investiční poradenství týkající se IN","i) umísťování IN bez závazku jejich upsání","a) přijímání a předávání pokynů týkajících se IN","e) investiční poradenství týkající se IN","i) umísťování IN bez závazku jejich upsání","a) přijímání a předávání pokynů týkajících se IN","e) investiční poradenství týkající se IN","i) umísťování IN bez závazku jejich upsání","a) přijímání a předávání pokynů týkajících se IN","e) investiční poradenství týkající se IN","i) umísťování IN bez závazku jejich upsání","Propagace investičních služeb, který je zastoupený oprávněn poskytovat","a) přijímání a předávání pokynů týkajících se IN","e) investiční poradenství týkající se IN","a) přijímání a předávání pokynů týkajících se IN","e) investiční poradenství týkající se IN","a) přijímání a předávání pokynů týkajících se IN","e) investiční poradenství týkající se IN","a) přijímání a předávání pokynů týkajících se IN","e) investiční poradenství týkající se IN","a) přijímání a předávání pokynů týkajících se IN","e) investiční poradenství týkající se IN","a) přijímání a předávání pokynů týkajících se IN","e) investiční poradenství týkající se IN","a) přijímání a předávání pokynů týkajících se IN","e) investiční poradenství týkající se IN","a) přijímání a předávání pokynů týkajících se IN","e) investiční poradenství týkající se IN","a) přijímání a předávání pokynů týkajících se IN","e) investiční poradenství týkající se IN","a) přijímání a předávání pokynů týkajících se IN","e) investiční poradenství týkající se IN","a) přijímání a předávání pokynů týkajících se IN","e) investiční poradenství týkající se IN","a) přijímání a předávání pokynů týkajících se IN","e) investiční poradenství týkající se IN","Propagace investičních služeb, který je zastoupený oprávněn poskytovat"]
[null,{"$f":"IF(C11<>\"\",\"1FO\",\"\")","v":""}]
[null,{"$f":"IF(C12<>\"\",IF(MID(B11,1,1)<>\"\",MID(B11,1,(FIND(\"FO\",B11,1)-1))+1&\"FO\",\"\"),\"\")","v":""}]
[null,{"$f":"IF(C13<>\"\",IF(MID(B12,1,1)<>\"\",MID(B12,1,(FIND(\"FO\",B12,1)-1))+1&\"FO\",\"\"),\"\")","v":""}]
[null,""]
[null,""]
[null,""]
[null,""]
[null,""]
[null,""]
[null,""]
[null,""]
[null,""]
[null,""]
[null,""]
[null,""]
[null,""]
[null,""]
[null,""]
[null,""]
[null,""]
[null,""]
[null,""]
[null,""]
[null,""]
[null,""]
[null,""]
[null,""]
[null,""]
[null,""]
[null,""]
[null,""]
[null,""]
[null,""]
[null,""]
[null,""]
[null,""]
[null,""]
[null,""]
[null,""]
[null,""]
[null,""]
[null,""]
[null,""]
[null,""]
[null,""]
[null,""]
[null,""]
[null,""]
[null,""]
[null,""]
[null,""]
[null,""]
[null,""]
[null,""]
[null,""]
[null,""]
[null,""]
[null,""]
[null,""]
[null,""]
[null,""]
[null,""]
[null,""]
[null,""]
[null,""]
[null,""]
[null,{"$f":"IF(C77<>\"\",IF(MID(B76,1,1)<>\"\",MID(B76,1,(FIND(\"FO\",B76,1)-1))+1&\"FO\",\"\"),\"\")","v":""}]
[null,""]
[null,""]
[null,""]
[null,""]
[null,""]
[null,""]
[null,""]
[null,""]
[null,""]
[null,""]
[null,""]
[null,""]
[null,""]
[null,""]
[null,""]
[null,""]
[null,""]
[null,""]
[null,""]
[null,""]
[null,""]
[null,""]
[null,""]
[null,""]
[null,""]
[null,""]
[null,""]
[null,""]
[null,""]
[null,""]
[null,""]
[null,""]
[null,""]

{"sheet":"ZastupciPO","index":3,"n_rows":110,"n_cols":91,"rows_kept":110,"cut":false,"hidden":false,"merged":[[5,66,5,90],[6,29,6,65],[6,66,6,90],[7,18,7,27],[7,29,7,64],[7,65,8,65],[7,66,7,89],[7,90,8,90],[8,18,8,19],[8,20,8,21],[8,22,8,23],[8,24,8,25],[8,26,8,27],[8,29,8,31],[8,32,8,34],[8,68,8,69],[7,28,8,28],[6,18,6,28],[5,18,5,28],[8,35,8,37],[8,38,8,40],[5,29,5,65],[8,41,8,43],[8,44,8,46],[8,47,8,49],[8,50,8,52],[8,53,8,55],[8,56,8,58],[8,59,8,61],[8,62,8,64],[8,66,8,67],[8,78,8,79],[8,70,8,71],[8,72,8,73],[8,74,8,75],[8,76,8,77],[8,80,8,81],[8,82,8,83],[8,84,8,85],[8,86,8,87],[8,88,8,89],[5,1,9,1],[6,3,6,15],[8,11,9,11],[8,12,9,12],[8,6,9,6],[8,7,9,7],[8,8,9,8],[5,2,9,2],[7,13,7,15],[5,3,5,15],[7,3,9,3],[7,4,9,4],[7,5,7,12],[8,9,9,9],[8,10,9,10],[8,5,9,5],[5,16,9,16],[5,17,9,17],[8,13,9,13],[8,14,9,14],[8,15,9,15]]}
[]
[]
[null,null,null,null,null,null,null,null,null,null,null,null,null,null,null,null,null,null,"IZ",null,null,null,null,null,null,null,null,null,null,"OCP",null,null,null,null,null,null,null,null,null,null,null,null,null,null,null,null,null,null,null,null,null,null,null,null,null,null,null,null,null,null,null,null,null,null,null,null,"IS"]
[null,null,null,null,null,null,null,null,null,null,null,null,null,null,null,null,null,null,"VZ17_IZ_R2S2_HISa_INa","VZ17_IZ_R3S2_HISe_INa","VZ17_IZ_R2S3_HISa_INb","VZ17_IZ_R3S3_HISe_INb","VZ17_IZ_R2S4_HISa_INc","VZ17_IZ_R3S4_HISe_INc","VZ17_IZ_R2S5_HISa_INd","VZ17_IZ_R3S5_HISe_INd","VZ17_IZ_R2S6_HISa_INe","VZ17_IZ_R3S6_HISe_INe","VZ17_IZ_R5S0_PROPAGACE","VZ17_OCP_R2S2_HISa_INa","VZ17_OCP_R6S2_HISe_INa","VZ17_OCP_R9S2_HISi_INa","VZ17_OCP_R2S3_HISa_INb","VZ17_OCP_R6S3_HISe_INb","VZ17_OCP_R9S3_HISi_INb","VZ17_OCP_R2S4_HISa_INc","VZ17_OCP_R6S4_HISe_INc","VZ17_OCP_R9S4_HISi_INc","VZ17_OCP_R2S5_HISa_INd","VZ17_OCP_R6S5_HISe_INd","VZ17_OCP_R9S5_HISi_INd","VZ17_OCP_R2S6_HISa_INe","VZ17_OCP_R6S6_HISe_INe","VZ17_OCP_R9S6_HISi_INe","VZ17_OCP_R2S7_HISa_INf","VZ17_OCP_R6S7_HISe_INf","VZ17_OCP_R9S7_HISi_INf","VZ17_OCP_R2S8_HISa_INg","VZ17_OCP_R6S8_HISe_INg","VZ17_OCP_R9S8_HISi_INg","VZ17_OCP_R2S9_HISa_INh","VZ17_OCP_R6S9_HISe_INh","VZ17_OCP_R9S9_HISi_INh","VZ17_OCP_R2S10_HISa_INi","VZ17_OCP_R6S10_HISe_INi","VZ17_OCP_R9S10_HISi_INi","VZ17_OCP_R2S11_HISa_INj","VZ17_OCP_R6S11_HISe_INj","VZ17_OCP_R9S11_HISi_INj","VZ17_OCP_R2S12_HISa_INk","VZ17_OCP_R6S12_HISe_INk","VZ17_OCP_R9S12_HISi_INk","VZ17_OCP_R2S13_HISa_INl","VZ17_OCP_R6S13_HISe_INl","VZ17_OCP_R9S13_HISi_INl","VZ17_OCP_R19S0_PROPAGACE","VZ17_IS_R2S2_HISa_INa","VZ17_IS_R4S2_HISe_INa","VZ17_IS_R2S3_HISa_INb","VZ17_IS_R4S3_HISe_INb","VZ17_IS_R2S4_HISa_INc","VZ17_IS_R4S4_HISe_INc","VZ17_IS_R2S5_HISa_INd","VZ17_IS_R4S5_HISe_INd","VZ17_IS_R2S6_HISa_INe","VZ17_IS_R4S6_HISe_INe","VZ17_IS_R2S7_HISa_INf","VZ17_IS_R4S7_HISe_INf","VZ17_IS_R2S8_HISa_INg","VZ17_IS_R4S8_HISe_INg","VZ17_IS_R2S9_HISa_INh","VZ17_IS_R4S9_HISe_INh","VZ17_IS_R2S10_HISa_INi","VZ17_IS_R4S10_HISe_INi","VZ17_IS_R2S11_HISa_INj","VZ17_IS_R4S11_HISe_INj","VZ17_IS_R2S12_HISa_INk","VZ17_IS_R4S12_HISe_INk","VZ17_IS_R2S13_HISa_INl","VZ17_IS_R4S13_HISe_INl","VZ17_IS_R6S0_PROPAGACE"]
[1,2,3,4,5,6,7,8,9,10,11,12,13,14,15,16,17,18,19,20,21,22,23,24,25,26,27,28,29,30,31,32,33,34,35,36,37,38,39,40,41,42,43,44,45,46,47,48,49,50,51,52,53,54,55,56,57,58,59,60,61,62,63,64,65,66,67,68,69,70,71,72,73,74,75,76,77,78,79,80,81,82,83,84,85,86,87,88,89,90,91]
[null,"Pořadové číslo","Druh zápisu (Nový, Změna, Výmaz)","Identifikační údaje VZ",null,null,null,null,null,null,null,null,null,null,null,null,"Datum nabytí právní moci rozhodnutí o úpadku","Datum vstupu právnické osoby do likvidace","Činnosti podle §32a, odst. 1 zákona č. 256/2004, o podnikání na kapitálovém trhu",null,null,null,null,null,null,null,null,null,null,"Činnosti podle §32a, odst. 1 zákona č. 256/2004, o podnikání na kapitálovém trhu",null,null,null,null,null,null,null,null,null,null,null,null,null,null,null,null,null,null,null,null,null,null,null,null,null,null,null,null,null,null,null,null,null,null,null,null,"Činnosti podle §32a, odst. 1 zákona č. 256/2004, o podnikání na kapitálovém trhu"]
[null,null,null,"Právnická osoba",null,null,null,null,null,null,null,null,null,null,null,null,null,null,"Investiční nástroje podle § 29 odst. 3 zákona č. 256/2004, o podnikání na kapitálovém trhu",null,null,null,null,null,null,null,null,null,null,"Investiční nástroje podle § 3 odst. 1 zákona č. 256/2004, o podnikání na kapitálovém trhu",null,null,null,null,null,null,null,null,null,null,null,null,null,null,null,null,null,null,null,null,null,null,null,null,null,null,null,null,null,null,null,null,null,null,null,null,"Investiční nástroje podle § 3 odst. 1 zákona č. 256/2004, o podnikání na kapitálovém trhu"]
[null,null,null,"Identifikační číslo","Název / Obchodní firma","Adresa sídla",null,null,null,null,null,null,null,"Další kontakty",null,null,null,null,"Hlavní investiční služby (§ 4 odst. 2)",null,null,null,null,null,null,null,null,null,"Další oprávnění","Hlavní investiční služby (§ 4 odst. 2)",null,null,null,null,null,null,null,null,null,null,null,null,null,null,null,null,null,null,null,null,null,null,null,null,null,null,null,null,null,null,null,null,null,null,null,"Další oprávnění","Hlavní investiční služby (§ 4 odst. 2)",null,null,null,null,null,null,null,null,null,null,null,null,null,null,null,null,null,null,null,null,null,null,null,"Další oprávnění"]
[null,null,null,null,null,"Ulice","Číslo popisné","Číslo orientační","Písmeno orientační","Část obce","Obec","PSČ","Stát","Kontaktní telefon","Datová schránka","Email",null,null,"a) cenné papíry kolektivního investování vydávané fondy kolektivního investování nebo srovnatelnými zahraničními investičními fondy",null,"b) cenné papíry kolektivního investování vydávané fondy kvalifikovaných investorů nebo srovnatelnými zahraničními investičními fondy",null,"c) dluhopisy vydané Českou republikou",null,"d) hypoteční zástavní listy",null,"e) dluhopisy, ke kterým byl vydán prospekt nebo srovnatelný dokument",null,null,"a) investiční CP",null,null,"b) CP kolektivního investování",null,null,"c) nástroje peněžního trhu",null,null,"d) deriváty s právem vypořádání v penězích nebo dodání majetkové hodnoty",null,null,"e) nástroje umožňující přenos úvěrového rizika",null,null,"f) finanční rozdílové smlouvy",null,null,"g) deriváty s právem na vypořádání v penězích nebo využití práva platební neschopnosti",null,null,"h) deriváty s právem vypořádání dodáním komodity",null,null,"i) deriváty podle § 3 odst. 1 písm. i)",null,null,"j) deriváty, jejichž hodnota se vztahuje ke klimatickým ukazatelům",null,null,"k) nástroje vztahující se k majetkovým hodnotám, které nejsou uvedené v písm. j)",null,null,"l) povolenky na emise skleníkových plynů",null,null,null,"a) investiční CP",null,"b) cenné papíry kolektivního investování",null,"c) nástroje peněžního trhu",null,"d) deriváty s právem na vypořádání v penězích nebo dodání majetkové hodnoty",null,"e) nástroje umožňující přenos úvěrového rizika",null,"f) finanční rozdílové smlouvy",null,"g) komoditní deriváty s právem na vypořádání v penězích nebo uplatněním plateb. neschopnosti",null,"h) deriváty s právem vypořádání dodáním komodity",null,"i) deriváty s právem vypořádání dodáním komodity, které nejsou uvedeny v písm. h)",null,"j) deriváty, jejichž hodnota se vztahuje ke klimatickým ukazatelům",null,"k) nástroje vztahující se k ukazatelům, které nejsou uvedeny v písm. j)",null,"l) povolenky na emise skleníkových plynů"]
[null,null,null,null,null,null,null,null,null,null,null,null,null,null,null,null,null,null,"a) přijímání a předávání pokynů týkajících se IN","e) investiční poradenství týkající se IN","a) přijímání a předávání pokynů týkajících se IN","e) investiční poradenství týkající se IN","a) přijímání a předávání pokynů týkajících se IN","e) investiční poradenství týkající se IN","a) přijímání a předávání pokynů týkajících se IN","e) investiční poradenství týkající se IN","a) přijímání a předávání pokynů týkajících se IN","e) investiční poradenství týkající se IN","Propagace investičních služeb, který je zastoupený oprávněn poskytovat","a) přijímání a předávání pokynů týkajících se IN","e) investiční poradenství týkající se IN","i) umísťování IN bez závazku jejich upsání","a) přijímání a předávání pokynů týkajících se IN","e) investiční poradenství týkající se IN","i) umísťování IN bez závazku jejich upsání","a) přijímání a předávání pokynů týkajících se IN","e) investiční poradenství týkající se IN","i) umísťování IN bez závazku jejich upsání","a) přijímání a předávání pokynů týkajících se IN","e) investiční poradenství týkající se IN","i) umísťování IN bez závazku jejich upsání","a) přijímání a předávání pokynů týkajících se IN","e) investiční poradenství týkající se IN","i) umísťování IN bez závazku jejich upsání","a) přijímání a předávání pokynů týkajících se IN","e) investiční poradenství týkající se IN","i) umísťování IN bez závazku jejich upsání","a) přijímání a předávání pokynů týkajících se IN","e) investiční poradenství týkající se IN","i) umísťování IN bez závazku jejich upsání","a) přijímání a předávání pokynů týkajících se IN","e) investiční poradenství týkající se IN","i) umísťování IN bez závazku jejich upsání","a) přijímání a předávání pokynů týkajících se IN","e) investiční poradenství týkající se IN","i) umísťování IN bez závazku jejich upsání","a) přijímání a předávání pokynů týkajících se IN","e) investiční poradenství týkající se IN","i) umísťování IN bez závazku jejich upsání","a) přijímání a předávání pokynů týkajících se IN","e) investiční poradenství týkající se IN","i) umísťování IN bez závazku jejich upsání","a) přijímání a předávání pokynů týkajících se IN","e) investiční poradenství týkající se IN","i) umísťování IN bez závazku jejich upsání","Propagace investičních služeb, který je zastoupený oprávněn poskytovat","a) přijímání a předávání pokynů týkajících se IN","e) investiční poradenství týkající se IN","a) přijímání a předávání pokynů týkajících se IN","e) investiční poradenství týkající se IN","a) přijímání a předávání pokynů týkajících se IN","e) investiční poradenství týkající se IN","a) přijímání a předávání pokynů týkajících se IN","e) investiční poradenství týkající se IN","a) přijímání a předávání pokynů týkajících se IN","e) investiční poradenství týkající se IN","a) přijímání a předávání pokynů týkajících se IN","e) investiční poradenství týkající se IN","a) přijímání a předávání pokynů týkajících se IN","e) investiční poradenství týkající se IN","a) přijímání a předávání pokynů týkajících se IN","e) investiční poradenství týkající se IN","a) přijímání a předávání pokynů týkajících se IN","e) investiční poradenství týkající se IN","a) přijímání a předávání pokynů týkajících se IN","e) investiční poradenství týkající se IN","a) přijímání a předávání pokynů týkajících se IN","e) investiční poradenství týkající se IN","a) přijímání a předávání pokynů týkajících se IN","e) investiční poradenství týkající se IN","Propagace investičních služeb, který je zastoupený oprávněn poskytovat"]
[null,{"$f":"IF(C11<>\"\",1&\"PO\",\"\")","v":""}]
[null,{"$f":"IF(C12<>\"\",IF(MID(B11,1,1)<>\"\",MID(B11,1,(FIND(\"PO\",B11,1)-1))+1&\"PO\",\"\"),\"\")","v":""}]
[null,{"$f":"IF(C13<>\"\",IF(MID(B12,1,1)<>\"\",MID(B12,1,(FIND(\"PO\",B12,1)-1))+1&\"PO\",\"\"),\"\")","v":""}]
[null,""]
[null,""]
[null,""]
[null,""]
[null,""]
[null,""]
[null,""]
[null,""]
[null,""]
[null,""]
[null,""]
[null,""]
[null,""]
[null,""]
[null,""]
[null,""]
[null,""]
[null,""]
[null,""]
[null,""]
[null,""]
[null,""]
[null,""]
[null,""]
[null,""]
[null,""]
[null,""]
[null,""]
[null,""]
[null,""]
[null,""]
[null,""]
[null,""]
[null,""]
[null,""]
[null,""]
[null,""]
[null,""]
[null,""]
[null,""]
[null,""]
[null,""]
[null,""]
[null,""]
[null,""]
[null,""]
[null,""]
[null,""]
[null,""]
[null,""]
[null,""]
[null,""]
[null,""]
[null,""]
[null,""]
[null,""]
[null,""]
[null,""]
[null,""]
[null,""]
[null,""]
[null,""]
[null,""]
[null,{"$f":"IF(C77<>\"\",IF(MID(B76,1,1)<>\"\",MID(B76,1,(FIND(\"PO\",B76,1)-1))+1&\"PO\",\"\"),\"\")","v":""}]
[null,""]
[null,""]
[null,""]
[null,""]
[null,""]
[null,""]
[null,""]
[null,""]
[null,""]
[null,""]
[null,""]
[null,""]
[null,""]
[null,""]
[null,""]
[null,""]
[null,""]
[null,""]
[null,""]
[null,""]
[null,""]
[null,""]
[null,""]
[null,""]
[null,""]
[null,""]
[null,""]
[null,""]
[null,""]
[null,""]
[null,""]
[null,""]
[null,""]

{"sheet":"Ciselniky","index":4,"n_rows":266,"n_cols":12,"rows_kept":266,"cut":false,"hidden":false,"merged":[[1,1,1,2],[3,12,3,13],[1,13,1,14],[1,7,1,8],[1,10,1,11],[1,4,1,5]]}
[]
[null,"Typ osoby",null,null,"Druh zápisu",null,null,"Státy",null,null,"Státy"]
[null,"Kód","Název",null,"Kód","Název",null,"Kód","Název",null,"Kód","Název"]
[null,"VZ","Vázaný zástupce dle zákona ZPKT",null,"N","Nový",null,"CZ","Česká republika",null,"CZ","Česká republika"]
[null,null,null,null,"Z","Změna",null,"AT","Rakousko",null,"AD","Andorra"]
[null,null,null,null,"V","Výmaz",null,"BE","Belgie",null,"AE","Spojené arabské emiráty"]
[null,null,null,null,null,null,null,"BG","Bulharsko",null,"AG","Antigua a Barbuda"]
[null,null,null,null,null,null,null,"CY","Kypr",null,"AI","Anguilla"]
[null,null,null,null,null,null,null,"DE","Německo",null,"AL","Albánie"]
[null,null,null,null,null,null,null,"DK","Dánsko",null,"AM","Arménie"]
[null,null,null,null,null,null,null,"EE","Estonsko",null,"AN","Nizozemské Antily"]
[null,null,null,null,null,null,null,"ES","Španělsko",null,"AO","Angola"]
[null,null,null,null,null,null,null,"FI","Finsko",null,"AQ","Antarktida"]
[null,null,null,null,null,null,null,"FR","Francie",null,"AR","Argentina"]
[null,null,null,null,null,null,null,"GB","Velká Británie",null,"AS","Americká Samoa"]
[null,null,null,null,null,null,null,"GR","Řecko",null,"AT","Rakousko"]
[null,null,null,null,null,null,null,"HR","Chorvatsko",null,"AU","Austrálie"]
[null,null,null,null,null,null,null,"HU","Maďarsko",null,"AW","Aruba"]
[null,null,null,null,null,null,null,"IE","Irsko",null,"AZ","Ázerbajdžán"]
[null,null,null,null,null,null,null,"IS","Island",null,"BA","Bosna-Hercegovina"]
[null,null,null,null,null,null,null,"IT","Itálie",null,"BB","Barbados"]
[null,null,null,null,null,null,null,"LI","Lichtenštejnsko",null,"BD","Bangladéš"]
[null,null,null,null,null,null,null,"LT","Litva",null,"BE","Belgie"]
[null,null,null,null,null,null,null,"LU","Lucembursko",null,"BF","Burkina Faso"]
[null,null,null,null,null,null,null,"LV","Lotyšsko",null,"BG","Bulharsko"]
[null,null,null,null,null,null,null,"MT","Malta",null,"BH","Bahrajn"]
[null,null,null,null,null,null,null,"NL","Nizozemí",null,"BI","Burundi"]
[null,null,null,null,null,null,null,"NO","Norsko",null,"BJ","Benin"]
[null,null,null,null,null,null,null,"PL","Polsko",null,"BL","Svatý Bartoloměj"]
[null,null,null,null,null,null,null,"PT","Portugalsko",null,"BM","Bermudy"]
[null,null,null,null,null,null,null,"RO","Rumunsko",null,"BN","Brunej Darussalam"]
[null,null,null,null,null,null,null,"SE","Švédsko",null,"BO","Bolívie"]
[null,null,null,null,null,null,null,"SI","Slovinsko",null,"BQ","Bonaire, Svatý Eustach a Saba"]
[null,null,null,null,null,null,null,"SK","Slovensko",null,"BR","Brazílie"]
[null,null,null,null,null,null,null,null,null,null,"BS","Bahamy"]
[null,null,null,null,null,null,null,null,null,null,"BT","Bhútánské království"]
[null,null,null,null,null,null,null,null,null,null,"BV","Bouvetův ostrov"]
[null,null,null,null,null,null,null,null,null,null,"BW","Botswana"]
[null,null,null,null,null,null,null,null,null,null,"BY","Bělorusko"]
[null,null,null,null,null,null,null,null,null,null,"BZ","Belize"]
[null,null,null,null,null,null,null,null,null,null,"CA","Kanada"]
[null,null,null,null,null,null,null,null,null,null,"CC","Kokosové ostrovy"]
[null,null,null,null,null,null,null,null,null,null,"CD","Kongo, demokratická republika"]
[null,null,null,null,null,null,null,null,null,null,"CF","Středoafrická republika"]
[null,null,null,null,null,null,null,null,null,null,"CG","Konžská republika"]
[null,null,null,null,null,null,null,null,null,null,"CI","Pobřeží slonoviny"]
[null,null,null,null,null,null,null,null,null,null,"CK","Cookovy ostrovy"]
[null,null,null,null,null,null,null,null,null,null,"CL","Chile"]
[null,null,null,null,null,null,null,null,null,null,"CM","Kamerun"]
[null,null,null,null,null,null,null,null,null,null,"CN","ČLR"]
[null,null,null,null,null,null,null,null,null,null,"CO","Kolumbie"]
[null,null,null,null,null,null,null,null,null,null,"CR","Kostarika"]
[null,null,null,null,null,null,null,null,null,null,"CT","Canton a Enderbury"]
[null,null,null,null,null,null,null,null,null,null,"CU","Kuba"]
[null,null,null,null,null,null,null,null,null,null,"CV","Kapverdy"]
[null,null,null,null,null,null,null,null,null,null,"CW","Curaçao"]
[null,null,null,null,null,null,null,null,null,null,"CX","Vánoční ostrovy"]
[null,null,null,null,null,null,null,null,null,null,"CY","Kypr"]
[null,null,null,null,null,null,null,null,null,null,"DE","Německo"]
[null,null,null,null,null,null,null,null,null,null,"DJ","Džibutsko"]
[null,null,null,null,null,null,null,null,null,null,"DK","Dánsko"]
[null,null,null,null,null,null,null,null,null,null,"DM","Dominika"]
[null,null,null,null,null,null,null,null,null,null,"DO","Dominikánská republika"]
[null,null,null,null,null,null,null,null,null,null,"DZ","Alžírsko"]
[null,null,null,null,null,null,null,null,null,null,"EC","Ekvádor"]
[null,null,null,null,null,null,null,null,null,null,"EE","Estonsko"]
[null,null,null,null,null,null,null,null,null,null,"EG","Egypt"]
[null,null,null,null,null,null,null,null,null,null,"EH","Západní Sahara"]
[null,null,null,null,null,null,null,null,null,null,"ER","Eritrea"]
[null,null,null,null,null,null,null,null,null,null,"ES","Španělsko"]
[null,null,null,null,null,null,null,null,null,null,"ET","Etiopie"]
[null,null,null,null,null,null,null,null,null,null,"FI","Finsko"]
[null,null,null,null,null,null,null,null,null,null,"FJ","Fidži"]
[null,null,null,null,null,null,null,null,null,null,"FK","Falklandy"]
[null,null,null,null,null,null,null,null,null,null,"FM","Federativní státy a Mikronésie"]
[null,null,null,null,null,null,null,null,null,null,"FO","Faerské ostrovy"]
[null,null,null,null,null,null,null,null,null,null,"FR","Francie"]
[null,null,null,null,null,null,null,null,null,null,"GA","Gabon"]
[null,null,null,null,null,null,null,null,null,null,"GB","Velká Británie"]
[null,null,null,null,null,null,null,null,null,null,"GD","Grenada"]
[null,null,null,null,null,null,null,null,null,null,"GE","Gruzie"]
[null,null,null,null,null,null,null,null,null,null,"GF","Francouzská Guayana"]
[null,null,null,null,null,null,null,null,null,null,"GG","Guernsey"]
[null,null,null,null,null,null,null,null,null,null,"GH","Ghana"]
[null,null,null,null,null,null,null,null,null,null,"GI","Gibraltar"]
[null,null,null,null,null,null,null,null,null,null,"GL","Grónsko"]
[null,null,null,null,null,null,null,null,null,null,"GM","Gambie"]
[null,null,null,null,null,null,null,null,null,null,"GN","Guinea"]
[null,null,null,null,null,null,null,null,null,null,"GP","Guadeloupe"]
[null,null,null,null,null,null,null,null,null,null,"GQ","Rovníková Guinea"]
[null,null,null,null,null,null,null,null,null,null,"GR","Řecko"]
[null,null,null,null,null,null,null,null,null,null,"GS","Jižní Georgie a Jižní Sanwich. o."]
[null,null,null,null,null,null,null,null,null,null,"GT","Guatemala"]
[null,null,null,null,null,null,null,null,null,null,"GU","Guam"]
[null,null,null,null,null,null,null,null,null,null,"GW","Guinea-Bissau"]
[null,null,null,null,null,null,null,null,null,null,"GY","Guyana"]
[null,null,null,null,null,null,null,null,null,null,"HK","Hongkong"]
[null,null,null,null,null,null,null,null,null,null,"HM","Heardův a MacDonaldův o."]
[null,null,null,null,null,null,null,null,null,null,"HN","Honduras"]
[null,null,null,null,null,null,null,null,null,null,"HR","Chorvatsko"]
[null,null,null,null,null,null,null,null,null,null,"HT","Haiti"]
[null,null,null,null,null,null,null,null,null,null,"HU","Maďarsko"]
[null,null,null,null,null,null,null,null,null,null,"CH","Švýcarsko"]
[null,null,null,null,null,null,null,null,null,null,"ID","Indonésie"]
[null,null,null,null,null,null,null,null,null,null,"IE","Irsko"]
[null,null,null,null,null,null,null,null,null,null,"IL","Izrael"]
[null,null,null,null,null,null,null,null,null,null,"IM","Ostrov Man"]
[null,null,null,null,null,null,null,null,null,null,"IN","Indie"]
[null,null,null,null,null,null,null,null,null,null,"IO","Britské indickooceánské terit."]
[null,null,null,null,null,null,null,null,null,null,"IQ","Irák"]
[null,null,null,null,null,null,null,null,null,null,"IR","Irán"]
[null,null,null,null,null,null,null,null,null,null,"IS","Island"]
[null,null,null,null,null,null,null,null,null,null,"IT","Itálie"]
[null,null,null,null,null,null,null,null,null,null,"JE","Bailiwick Jersey"]
[null,null,null,null,null,null,null,null,null,null,"JM","Jamajka"]
[null,null,null,null,null,null,null,null,null,null,"JO","Jordánsko"]
[null,null,null,null,null,null,null,null,null,null,"JP","Japonsko"]
[null,null,null,null,null,null,null,null,null,null,"JT","Johnston I."]
[null,null,null,null,null,null,null,null,null,null,"KE","Keňa"]
[null,null,null,null,null,null,null,null,null,null,"KG","Kyrgyzstán"]
[null,null,null,null,null,null,null,null,null,null,"KH","Kambodža"]
[null,null,null,null,null,null,null,null,null,null,"KI","Kiribati"]
[null,null,null,null,null,null,null,null,null,null,"KM","Komory"]
[null,null,null,null,null,null,null,null,null,null,"KN","Sv. Kryštof"]
[null,null,null,null,null,null,null,null,null,null,"KP","KLDR"]
[null,null,null,null,null,null,null,null,null,null,"KR","Jižní Korea"]
[null,null,null,null,null,null,null,null,null,null,"KW","Kuvajt"]
[null,null,null,null,null,null,null,null,null,null,"KY","Kajmanské ostrovy"]
[null,null,null,null,null,null,null,null,null,null,"KZ","Kazachstán"]
[null,null,null,null,null,null,null,null,null,null,"LA","Laos"]
[null,null,null,null,null,null,null,null,null,null,"LB","Libanon"]
[null,null,null,null,null,null,null,null,null,null,"LC","Sv. Lucie"]
[null,null,null,null,null,null,null,null,null,null,"LI","Lichtenštejnsko"]
[null,null,null,null,null,null,null,null,null,null,"LK","Srí Lanka"]
[null,null,null,null,null,null,null,null,null,null,"LR","Libérie"]
[null,null,null,null,null,null,null,null,null,null,"LS","Lesotho"]
[null,null,null,null,null,null,null,null,null,null,"LT","Litva"]
[null,null,null,null,null,null,null,null,null,null,"LU","Lucembursko"]
[null,null,null,null,null,null,null,null,null,null,"LV","Lotyšsko"]
[null,null,null,null,null,null,null,null,null,null,"LY","Libye"]
[null,null,null,null,null,null,null,null,null,null,"MA","Maroko"]
[null,null,null,null,null,null,null,null,null,null,"MC","Monako"]
[null,null,null,null,null,null,null,null,null,null,"MD","Moldavsko"]
[null,null,null,null,null,null,null,null,null,null,"ME","Černá Hora"]
[null,null,null,null,null,null,null,null,null,null,"MF","Sv. Martin (FR)"]
[null,null,null,null,null,null,null,null,null,null,"MG","Madagaskar"]
[null,null,null,null,null,null,null,null,null,null,"MH","Marshallovy ostrovy"]
[null,null,null,null,null,null,null,null,null,null,"MI","Midwayské ostrovy"]
[null,null,null,null,null,null,null,null,null,null,"MK","Makedonie"]
[null,null,null,null,null,null,null,null,null,null,"ML","Mali"]
[null,null,null,null,null,null,null,null,null,null,"MM","Barma"]
[null,null,null,null,null,null,null,null,null,null,"MM","Myanmarský svaz"]
[null,null,null,null,null,null,null,null,null,null,"MN","Mongolsko"]
[null,null,null,null,null,null,null,null,null,null,"MO","Macao"]
[null,null,null,null,null,null,null,null,null,null,"MP","Severní Marianny"]
[null,null,null,null,null,null,null,null,null,null,"MQ","Martinik"]
[null,null,null,null,null,null,null,null,null,null,"MR","Mauritánie"]
[null,null,null,null,null,null,null,null,null,null,"MS","Montserrat"]
[null,null,null,null,null,null,null,null,null,null,"MT","Malta"]
[null,null,null,null,null,null,null,null,null,null,"MU","Mauricius"]
[null,null,null,null,null,null,null,null,null,null,"MV","Maledivy"]
[null,null,null,null,null,null,null,null,null,null,"MW","Malawi"]
[null,null,null,null,null,null,null,null,null,null,"MX","Mexiko"]
[null,null,null,null,null,null,null,null,null,null,"MY","Malajsie"]
[null,null,null,null,null,null,null,null,null,null,"MZ","Mosambik"]
[null,null,null,null,null,null,null,null,null,null,"NA","Namíbie"]
[null,null,null,null,null,null,null,null,null,null,"NC","Nová Kaledonie"]
[null,null,null,null,null,null,null,null,null,null,"NE","Niger"]
[null,null,null,null,null,null,null,null,null,null,"NF","Norfolk"]
[null,null,null,null,null,null,null,null,null,null,"NG","Nigérie"]
[null,null,null,null,null,null,null,null,null,null,"NI","Nikaragua"]
[null,null,null,null,null,null,null,null,null,null,"NL","Nizozemí"]
[null,null,null,null,null,null,null,null,null,null,"NO","Norsko"]
[null,null,null,null,null,null,null,null,null,null,"NP","Nepál"]
[null,null,null,null,null,null,null,null,null,null,"NQ","Země královny Maud"]
[null,null,null,null,null,null,null,null,null,null,"NR","Nauru"]
[null,null,null,null,null,null,null,null,null,null,"NT","Neutrální území"]
[null,null,null,null,null,null,null,null,null,null,"NU","Niue"]
[null,null,null,null,null,null,null,null,null,null,"NZ","Nový Zéland"]
[null,null,null,null,null,null,null,null,null,null,"OM","Omán"]
[null,null,null,null,null,null,null,null,null,null,"PA","Panama"]
[null,null,null,null,null,null,null,null,null,null,"PC","Mikronésie"]
[null,null,null,null,null,null,null,null,null,null,"PE","Peru"]
[null,null,null,null,null,null,null,null,null,null,"PF","Francouzská Polynésie"]
[null,null,null,null,null,null,null,null,null,null,"PG","Papua-Nová Guinea"]
[null,null,null,null,null,null,null,null,null,null,"PH","Filipíny"]
[null,null,null,null,null,null,null,null,null,null,"PK","Pákistán"]
[null,null,null,null,null,null,null,null,null,null,"PL","Polsko"]
[null,null,null,null,null,null,null,null,null,null,"PM","Saint Pierre a Miquelon"]
[null,null,null,null,null,null,null,null,null,null,"PN","Pitcairnovy ostrovy"]
[null,null,null,null,null,null,null,null,null,null,"PR","Portoriko"]
[null,null,null,null,null,null,null,null,null,null,"PS","Palestina"]
[null,null,null,null,null,null,null,null,null,null,"PT","Portugalsko"]
[null,null,null,null,null,null,null,null,null,null,"PW","Palau"]
[null,null,null,null,null,null,null,null,null,null,"PY","Paraguay"]
[null,null,null,null,null,null,null,null,null,null,"PZ","Panamské průplav. pásmo"]
[null,null,null,null,null,null,null,null,null,null,"QA","Katar"]
[null,null,null,null,null,null,null,null,null,null,"RE","Réunion"]
[null,null,null,null,null,null,null,null,null,null,"RO","Rumunsko"]
[null,null,null,null,null,null,null,null,null,null,"RS","Srbsko"]
[null,null,null,null,null,null,null,null,null,null,"RU","Rusko"]
[null,null,null,null,null,null,null,null,null,null,"RW","Rwanda"]
[null,null,null,null,null,null,null,null,null,null,"SA","Saúdská Arábie"]
[null,null,null,null,null,null,null,null,null,null,"SB","Šalomounovy ostrovy"]
[null,null,null,null,null,null,null,null,null,null,"SC","Seychelly"]
[null,null,null,null,null,null,null,null,null,null,"SD","Súdán"]
[null,null,null,null,null,null,null,null,null,null,"SE","Švédsko"]
[null,null,null,null,null,null,null,null,null,null,"SG","Singapur"]
[null,null,null,null,null,null,null,null,null,null,"SH","Sv. Helena"]
[null,null,null,null,null,null,null,null,null,null,"SI","Slovinsko"]
[null,null,null,null,null,null,null,null,null,null,"SJ","Špicberky"]
[null,null,null,null,null,null,null,null,null,null,"SK","Slovensko"]
[null,null,null,null,null,null,null,null,null,null,"SL","Sierra Leone"]
[null,null,null,null,null,null,null,null,null,null,"SM","San Marino"]
[null,null,null,null,null,null,null,null,null,null,"SN","Senegal"]
[null,null,null,null,null,null,null,null,null,null,"SO","Somalsko"]
[null,null,null,null,null,null,null,null,null,null,"SR","Surinam"]
[null,null,null,null,null,null,null,null,null,null,"SS","Jihosúdánská republika"]
[null,null,null,null,null,null,null,null,null,null,"ST","Sv. Tomáš"]
[null,null,null,null,null,null,null,null,null,null,"SU","SSSR"]
[null,null,null,null,null,null,null,null,null,null,"SV","Salvador"]
[null,null,null,null,null,null,null,null,null,null,"SX","Sv. Martin (NL)"]
[null,null,null,null,null,null,null,null,null,null,"SY","Sýrie"]
[null,null,null,null,null,null,null,null,null,null,"SZ","Svazijsko"]
[null,null,null,null,null,null,null,null,null,null,"TC","Turks a Caicos"]
[null,null,null,null,null,null,null,null,null,null,"TD","Čad"]
[null,null,null,null,null,null,null,null,null,null,"TF","Francouzská jižní území"]
[null,null,null,null,null,null,null,null,null,null,"TG","Togo"]
[null,null,null,null,null,null,null,null,null,null,"TH","Thajsko"]
[null,null,null,null,null,null,null,null,null,null,"TJ","Tádžikistán"]
[null,null,null,null,null,null,null,null,null,null,"TK","Tokelau"]
[null,null,null,null,null,null,null,null,null,null,"TL","Demokratická republika Východní Timor"]
[null,null,null,null,null,null,null,null,null,null,"TN","Tunisko"]
[null,null,null,null,null,null,null,null,null,null,"TO","Tonga"]
[null,null,null,null,null,null,null,null,null,null,"TP","Východní Timor"]
[null,null,null,null,null,null,null,null,null,null,"TR","Turecko"]
[null,null,null,null,null,null,null,null,null,null,"TT","Trinidad a Tobago"]
[null,null,null,null,null,null,null,null,null,null,"TU","Turkmenistán"]
[null,null,null,null,null,null,null,null,null,null,"TV","Tuvalu"]
[null,null,null,null,null,null,null,null,null,null,"TW","Tchaj-wan"]
[null,null,null,null,null,null,null,null,null,null,"TZ","Tanzánie"]
[null,null,null,null,null,null,null,null,null,null,"UA","Ukrajina"]
[null,null,null,null,null,null,null,null,null,null,"UG","Uganda"]
[null,null,null,null,null,null,null,null,null,null,"UM","Ostrovy USA v Tichém o."]
[null,null,null,null,null,null,null,null,null,null,"US","USA"]
[null,null,null,null,null,null,null,null,null,null,"UY","Uruguay"]
[null,null,null,null,null,null,null,null,null,null,"UZ","Uzbekistán"]
[null,null,null,null,null,null,null,null,null,null,"VA","Vatikán"]
[null,null,null,null,null,null,null,null,null,null,"VC","Sv. Vincenc a Grenadiny"]
[null,null,null,null,null,null,null,null,null,null,"VE","Venezuela"]
[null,null,null,null,null,null,null,null,null,null,"VG","Britské Panenské ostrovy"]
[null,null,null,null,null,null,null,null,null,null,"VI","Panenské ostrovy (USA)"]
[null,null,null,null,null,null,null,null,null,null,"VN","Vietnam"]
[null,null,null,null,null,null,null,null,null,null,"VU","Vanuatu"]
[null,null,null,null,null,null,null,null,null,null,"WB","Západní Berlín (do 1991)"]
[null,null,null,null,null,null,null,null,null,null,"WF","Wallisovy ostrovy"]
[null,null,null,null,null,null,null,null,null,null,"WK","Wake I."]
[null,null,null,null,null,null,null,null,null,null,"WS","Samoa"]
[null,null,null,null,null,null,null,null,null,null,"XK","Kosovská republika"]
[null,null,null,null,null,null,null,null,null,null,"YD","Jižní Jemen"]
[null,null,null,null,null,null,null,null,null,null,"YE","Jemen"]
[null,null,null,null,null,null,null,null,null,null,"YT","Mayotte"]
[null,null,null,null,null,null,null,null,null,null,"ZA","Jihoafrická republika"]
[null,null,null,null,null,null,null,null,null,null,"ZM","Zambie"]
[null,null,null,null,null,null,null,null,null,null,"ZR","Zair"]
[null,null,null,null,null,null,null,null,null,null,"ZW","Zimbabwe"]